fUST/lending_fUST_20240719
["ID","MTS","AMOUNT","RATE_DAILY","PERIOD"]
[332613265,1721349039422,-500.0,0.00018878,2]
[332613266,1721349039431,-500.0,0.00018878,2]
[332613267,1721349039441,-500.0,0.00018878,2]
[332613268,1721349039450,-500.0,0.00018878,2]
[332613269,1721349039461,-500.0,0.00018878,2]
[332613270,1721349039470,-500.0,0.00018878,2]
[332613271,1721349039480,-500.0,0.00018878,2]
[332613272,1721349039489,-566.55342241,0.00018878,2]
[332613273,1721349039499,-500.0,0.00018878,2]
[332613274,1721349039509,-500.0,0.00018878,2]
[332613275,1721349039519,-500.0,0.00018878,2]
[332613276,1721349039529,-260.0,0.00018878,2]
[332613277,1721349039538,-500.0,0.00018878,2]
[332613278,1721349039548,-500.0,0.00018878,2]
[332613279,1721349039559,-500.0,0.00018878,2]
[332613280,1721349039568,-500.0,0.00018878,2]
[332613281,1721349039578,-500.0,0.00018878,2]
[332613282,1721349039588,-500.0,0.00018878,2]
[332613283,1721349039598,-126828.847635,0.00018879,2]
[332613284,1721349039607,-521.08561291,0.00018879,2]
[332613285,1721349039617,-126828.847635,0.0001888,2]
[332613286,1721349039628,-47182.11599287,0.0001889,2]
[332613287,1721349039637,-154.80649189,0.00018899,2]
[332613288,1721349039648,-1209.15446054,0.000189,2]
[332613289,1721349039658,-4544.26616829,0.00018943,2]
[332613290,1721349039668,-34486.70568112,0.0001899,2]
[332613291,1721349039681,-1293.42835481,0.0001899,2]
[332613292,1721349039693,-10094.66775495,0.0001899,2]
[332613308,1721349041078,-3932.61127618,0.0001899,2]
[332613309,1721349041095,-77021.43456794,0.0001899,2]
[332613310,1721349041105,-151.0,0.0001899,2]
[332613311,1721349041115,-153.116158,0.0001899,2]
[332613312,1721349041124,-151.0,0.0001899,2]
[332613313,1721349041134,-151.0,0.0001899,2]
[332613314,1721349041143,-151.0,0.0001899,2]
[332613315,1721349041153,-21278.24130221,0.00018999,2]
[332613316,1721349041163,-100000.0,0.00019,2]
[332613317,1721349041173,-757.94665298,0.00019,2]
[332613318,1721349041183,-587.0,0.00019009,2]
[332613319,1721349041192,-846.32958196,0.00019046,2]
[332613320,1721349041202,-228.36865233,0.00019083,2]
[332613321,1721349041212,-390.22601338,0.00019086,2]
[332613322,1721349041222,-8413.12068684,0.00019086,2]
[332613323,1721349041231,-2205.22308563,0.00019087,2]
[332613324,1721349041241,-375.00206261,0.0001912,2]
[332613325,1721349041250,-155.63751278,0.00019121,2]
[332613326,1721349041259,-341.17819738,0.00019145,2]
[332613327,1721349041270,-151.0,0.00019177,2]
[332613328,1721349041280,-151.0,0.00019177,2]
[332613329,1721349041289,-151.0,0.00019177,2]
[332613330,1721349041299,-567.65464644,0.00019177,2]
[332613331,1721349041308,-151.0,0.00019177,2]
[332613332,1721349041317,-941.11785543,0.00019177,2]
[332613333,1721349041326,-500.0,0.00019178,2]
[332613334,1721349041335,-500.0,0.00019178,2]
[332613335,1721349041345,-1125.86,0.00019178,2]
[332613336,1721349041354,-524.22,0.00019178,2]
[332613337,1721349041364,-500.0,0.00019178,2]
[332613338,1721349041374,-500.0,0.00019178,2]
[332613339,1721349041384,-500.0,0.00019178,2]
[332613340,1721349041394,-500.0,0.00019178,2]
[332613341,1721349041403,-500.0,0.00019178,2]
[332613342,1721349041414,-500.0,0.00019178,2]
[332613343,1721349041423,-500.0,0.00019178,2]
[332613344,1721349041433,-500.0,0.00019178,2]
[332613345,1721349041443,-500.0,0.00019178,2]
[332613346,1721349041453,-1113.33,0.00019178,2]
[332613347,1721349041465,-500.0,0.00019178,2]
[332613348,1721349041474,-414.62134284,0.00019178,2]
[332613349,1721349041484,-500.0,0.00019178,2]
[332613350,1721349041494,-500.0,0.00019178,2]
[332613351,1721349041504,-423.54628194,0.00019178,2]
[332613352,1721349041514,-500.0,0.00019178,2]
[332613353,1721349041523,-971.55,0.00019178,2]
[332613354,1721349041533,-500.0,0.00019178,2]
[332613355,1721349041544,-500.0,0.00019178,2]
[332613356,1721349041553,-500.0,0.00019178,2]
[332613357,1721349041563,-500.0,0.00019178,2]
[332613358,1721349041572,-500.0,0.00019178,2]
[332613359,1721349041582,-500.0,0.00019178,2]
[332613360,1721349041592,-500.0,0.00019178,2]
[332613361,1721349041601,-500.0,0.00019178,2]
[332613362,1721349041611,-634.65,0.00019178,2]
[332613363,1721349041621,-500.0,0.00019178,2]
[332613364,1721349041630,-467.42363198,0.00019178,2]
[332613365,1721349041640,-500.0,0.00019178,2]
[332613366,1721349041650,-500.0,0.00019178,2]
[332613367,1721349041659,-500.0,0.00019178,2]
[332613368,1721349041669,-547.91755961,0.00019178,2]
[332613369,1721349041679,-500.0,0.00019178,2]
[332613370,1721349041688,-500.0,0.00019178,2]
[332613371,1721349041699,-500.0,0.00019178,2]
[332613372,1721349041709,-500.0,0.00019178,2]
[332613373,1721349041720,-486.59886102,0.00019178,2]
[332613374,1721349041729,-513.10944605,0.00019178,2]
[332613375,1721349041741,-500.0,0.00019178,2]
[332613376,1721349041750,-500.0,0.00019178,2]
[332613377,1721349041759,-500.0,0.00019178,2]
[332613378,1721349041769,-505.67942803,0.00019178,2]
[332613379,1721349041779,-470.8655459,0.00019178,2]
[332613380,1721349041789,-500.0,0.00019178,2]
[332613381,1721349041799,-500.0,0.00019178,2]
[332613382,1721349041808,-500.0,0.00019178,2]
[332613383,1721349041818,-500.0,0.00019178,2]
[332613384,1721349041828,-500.0,0.00019178,2]
[332613385,1721349041838,-500.0,0.00019178,2]
[332613386,1721349041848,-500.0,0.00019178,2]
[332613387,1721349041859,-500.0,0.00019178,2]
[332613388,1721349041869,-501.2080456,0.00019178,2]
[332613389,1721349041879,-500.0,0.00019178,2]
[332613390,1721349041888,-500.0,0.00019178,2]
[332613391,1721349041898,-500.0,0.00019178,2]
[332613392,1721349041907,-500.0,0.00019178,2]
[332613393,1721349041917,-500.0,0.00019178,2]
[332613394,1721349041926,-500.0,0.00019178,2]
[332613395,1721349041936,-500.0,0.00019178,2]
[332613396,1721349041945,-581.63403523,0.00019178,2]
[332613397,1721349041956,-500.0,0.00019178,2]
[332613398,1721349041967,-500.0,0.00019178,2]
[332613399,1721349041976,-944.8,0.00019178,2]
[332613400,1721349041985,-1266.43,0.00019178,2]
[332613401,1721349041995,-500.0,0.00019178,2]
[332613402,1721349042004,-500.0,0.00019178,2]
[332613403,1721349042014,-500.0,0.00019178,2]
[332613404,1721349042024,-594.14,0.00019178,2]
[332613405,1721349042034,-500.0,0.00019178,2]
[332613406,1721349042044,-500.0,0.00019178,2]
[332613407,1721349042053,-500.0,0.00019178,2]
[332613408,1721349042063,-500.0,0.00019178,2]
[332613409,1721349042072,-1003.44871069,0.00019178,2]
[332613410,1721349042081,-500.0,0.00019178,2]
[332613411,1721349042094,-151.0,0.00019178,2]
[332613412,1721349042103,-500.0,0.00019178,2]
[332613413,1721349042112,-500.0,0.00019178,2]
[332613414,1721349042122,-500.0,0.00019178,2]
[332613415,1721349042132,-500.0,0.00019178,2]
[332613416,1721349042141,-500.0,0.00019178,2]
[332613417,1721349042151,-513.0102623,0.00019178,2]
[332613418,1721349042160,-496.01225948,0.00019178,2]
[332613419,1721349042169,-500.0,0.00019178,2]
[332613420,1721349042178,-500.0,0.00019178,2]
[332613421,1721349042188,-500.0,0.00019178,2]
[332613422,1721349042199,-500.0,0.00019178,2]
[332613423,1721349042208,-509.00558649,0.00019178,2]
[332613424,1721349042217,-2771.54,0.00019178,2]
[332613425,1721349042226,-724.08,0.00019178,2]
[332613426,1721349042235,-500.0,0.00019178,2]
[332613427,1721349042245,-500.0,0.00019178,2]
[332613428,1721349042254,-500.0,0.00019178,2]
[332613429,1721349042264,-500.0,0.00019178,2]
[332613430,1721349042273,-500.0,0.00019178,2]
[332613431,1721349042284,-500.0,0.00019178,2]
[332613432,1721349042296,-500.0,0.00019178,2]
[332613433,1721349042306,-500.0,0.00019178,2]
[332613434,1721349042316,-500.0,0.00019178,2]
[332613435,1721349042325,-500.0,0.00019178,2]
[332613436,1721349042334,-500.0,0.00019178,2]
[332613437,1721349042343,-500.0,0.00019178,2]
[332613438,1721349042353,-500.0,0.00019178,2]
[332613439,1721349042361,-524.07621317,0.00019178,2]
[332613440,1721349042371,-500.0,0.00019178,2]
[332613441,1721349042380,-435.63126053,0.00019178,2]
[332613442,1721349042389,-500.0,0.00019178,2]
[332613443,1721349042398,-3447.46,0.00019178,2]
[332613444,1721349042406,-500.0,0.00019178,2]
[332613445,1721349042415,-500.0,0.00019178,2]
[332613446,1721349042424,-500.0,0.00019178,2]
[332613447,1721349042433,-500.0,0.00019178,2]
[332613448,1721349042442,-511.4,0.00019178,2]
[332613449,1721349042451,-540.97364461,0.00019178,2]
[332613450,1721349042460,-500.0,0.00019178,2]
[332613451,1721349042470,-500.0,0.00019178,2]
[332613452,1721349042480,-1055.57,0.00019178,2]
[332613453,1721349042490,-500.0,0.00019178,2]
[332613454,1721349042498,-500.0,0.00019178,2]
[332613455,1721349042507,-505.32627324,0.00019178,2]
[332613456,1721349042517,-681.05,0.00019178,2]
[332613457,1721349042528,-200.0,0.00019178,2]
[332613458,1721349042539,-500.0,0.00019178,2]
[332613459,1721349042719,-735.44,0.00019178,2]
[332613460,1721349042730,-500.0,0.00019178,2]
[332613461,1721349042740,-500.0,0.00019178,2]
[332613462,1721349042750,-257.47765726,0.00019178,2]
[332613463,1721349042762,-500.0,0.00019178,2]
[332613464,1721349042773,-500.0,0.00019178,2]
[332613465,1721349042784,-500.0,0.00019178,2]
[332613466,1721349042794,-987.07,0.00019178,2]
[332613467,1721349042804,-500.0,0.00019178,2]
[332613468,1721349042816,-500.0,0.00019178,2]
[332613469,1721349042826,-500.0,0.00019178,2]
[332613470,1721349042837,-500.0,0.00019178,2]
[332613471,1721349042847,-500.0,0.00019178,2]
[332613472,1721349042860,-500.0,0.00019178,2]
[332613473,1721349042871,-1218.44,0.00019178,2]
[332613474,1721349042883,-1956.5,0.00019178,2]
[332613475,1721349042894,-500.0,0.00019178,2]
[332613476,1721349042903,-511.83390238,0.00019178,2]
[332613477,1721349042912,-500.0,0.00019178,2]
[332613478,1721349042922,-500.0,0.00019178,2]
[332613479,1721349042932,-600.0,0.00019178,2]
[332613480,1721349042943,-500.0,0.00019178,2]
[332613481,1721349042955,-500.0,0.00019178,2]
[332613482,1721349042966,-1335.48,0.00019178,2]
[332613483,1721349042976,-500.0,0.00019178,2]
[332613484,1721349042987,-500.0,0.00019178,2]
[332613485,1721349042997,-501.45319401,0.00019178,2]
[332613486,1721349043007,-500.0,0.00019178,2]
[332613487,1721349043018,-2465.13,0.00019178,2]
[332613488,1721349043029,-500.0,0.00019178,2]
[332613489,1721349043038,-500.0,0.00019178,2]
[332613490,1721349043048,-500.0,0.00019178,2]
[332613491,1721349043057,-500.0,0.00019178,2]
[332613492,1721349043066,-1918.47,0.00019178,2]
[332613493,1721349043075,-500.0,0.00019178,2]
[332613494,1721349043087,-2034.74,0.00019178,2]
[332613495,1721349043096,-500.0,0.00019178,2]
[332613496,1721349043105,-500.0,0.00019178,2]
[332613498,1721349043114,-500.0,0.00019178,2]
[332613499,1721349043123,-502.835875,0.00019178,2]
[332613500,1721349043134,-455.2844631,0.00019178,2]
[332613501,1721349043143,-1252.64,0.00019178,2]
[332613502,1721349043152,-500.0,0.00019178,2]
[332613503,1721349043162,-500.0,0.00019178,2]
[332613504,1721349043171,-882.82,0.00019178,2]
[332613505,1721349043180,-500.0,0.00019178,2]
[332613506,1721349043189,-500.0,0.00019178,2]
[332613507,1721349043198,-4380.0,0.00019178,2]
[332613508,1721349043207,-500.0,0.00019178,2]
[332613509,1721349043218,-1458.59,0.00019178,2]
[332613510,1721349043227,-1615.24,0.00019178,2]
[332613511,1721349043236,-3453.39,0.00019178,2]
[332613512,1721349043246,-500.0,0.00019178,2]
[332613513,1721349043255,-500.0,0.00019178,2]
[332613514,1721349043264,-500.0,0.00019178,2]
[332613515,1721349043273,-500.0,0.00019178,2]
[332613516,1721349043285,-500.0,0.00019178,2]
[332613517,1721349043294,-758.15,0.00019178,2]
[332613518,1721349043303,-511.83119997,0.00019178,2]
[332613519,1721349043313,-500.0,0.00019178,2]
[332613520,1721349043324,-520.77843644,0.00019178,2]
[332613521,1721349043335,-1204.69,0.00019178,2]
[332613522,1721349043346,-500.0,0.00019178,2]
[332613524,1721349043355,-500.0,0.00019178,2]
[332613525,1721349043367,-194.859616,0.00019178,2]
[332613526,1721349043378,-500.0,0.00019178,2]
[332613527,1721349043387,-510.71627223,0.00019178,2]
[332613528,1721349043398,-1273.05,0.00019178,2]
[332613529,1721349043407,-500.0,0.00019178,2]
[332613530,1721349043417,-500.0,0.00019178,2]
[332613531,1721349043426,-500.0,0.00019178,2]
[332613532,1721349043435,-500.0,0.00019178,2]
[332613533,1721349043445,-1440.23,0.00019178,2]
[332613534,1721349043454,-2534.45,0.00019178,2]
[332613536,1721349043464,-500.0,0.00019178,2]
[332613538,1721349043473,-500.0,0.00019178,2]
[332613540,1721349043482,-500.0,0.00019178,2]
[332613542,1721349043491,-500.0,0.00019178,2]
[332613543,1721349043500,-500.0,0.00019178,2]
[332613544,1721349043510,-500.0,0.00019178,2]
[332613545,1721349043519,-500.0,0.00019178,2]
[332613546,1721349043528,-500.0,0.00019178,2]
[332613547,1721349043537,-500.0,0.00019178,2]
[332613548,1721349043547,-567.97,0.00019178,2]
[332613549,1721349043556,-500.0,0.00019178,2]
[332613550,1721349043565,-151.0,0.00019178,2]
[332613551,1721349043574,-833.27,0.00019178,2]
[332613552,1721349043583,-959.34,0.00019178,2]
[332613553,1721349043592,-500.0,0.00019178,2]
[332613554,1721349043602,-500.0,0.00019178,2]
[332613555,1721349043611,-500.0,0.00019178,2]
[332613556,1721349043619,-500.0,0.00019178,2]
[332613557,1721349043629,-500.0,0.00019178,2]
[332613558,1721349043638,-589.42,0.00019178,2]
[332613559,1721349043647,-542.70909845,0.00019178,2]
[332613560,1721349043656,-500.0,0.00019178,2]
[332613561,1721349043666,-500.0,0.00019178,2]
[332613563,1721349043676,-500.0,0.00019178,2]
[332613564,1721349043685,-737.76,0.00019178,2]
[332613565,1721349043695,-502.96931108,0.00019178,2]
[332613566,1721349043704,-2978.73,0.00019178,2]
[332613567,1721349043714,-500.0,0.00019178,2]
[332613568,1721349043724,-500.0,0.00019178,2]
[332613569,1721349043733,-500.0,0.00019178,2]
[332613571,1721349043743,-500.0,0.00019178,2]
[332613573,1721349043753,-500.0,0.00019178,2]
[332613574,1721349043763,-877.83,0.00019178,2]
[332613575,1721349043772,-500.0,0.00019178,2]
[332613576,1721349043782,-1671.24,0.00019178,2]
[332613577,1721349043793,-1080.67,0.00019178,2]
[332613578,1721349043805,-500.0,0.00019178,2]
[332613579,1721349043816,-500.0,0.00019178,2]
[332613580,1721349043828,-500.0,0.00019178,2]
[332613581,1721349043838,-534.16,0.00019178,2]
[332613582,1721349043849,-500.0,0.00019178,2]
[332613583,1721349043858,-500.0,0.00019178,2]
[332613584,1721349043869,-500.0,0.00019178,2]
[332613585,1721349043879,-485.08218269,0.00019178,2]
[332613586,1721349043888,-595.57,0.00019178,2]
[332613587,1721349043898,-500.0,0.00019178,2]
[332613588,1721349043907,-500.0,0.00019178,2]
[332613589,1721349043917,-500.0,0.00019178,2]
[332613590,1721349043926,-500.0,0.00019178,2]
[332613591,1721349043935,-535.01951068,0.00019178,2]
[332613592,1721349043944,-500.0,0.00019178,2]
[332613593,1721349043953,-500.0,0.00019178,2]
[332613594,1721349043964,-500.0,0.00019178,2]
[332613596,1721349043973,-1835.44,0.00019178,2]
[332613597,1721349043983,-500.0,0.00019178,2]
[332613598,1721349043992,-500.53,0.00019178,2]
[332613599,1721349044003,-500.0,0.00019178,2]
[332613600,1721349044013,-503.47972355,0.00019178,2]
[332613601,1721349044022,-500.0,0.00019178,2]
[332613602,1721349044032,-1895.03,0.00019178,2]
[332613603,1721349044042,-454.18039872,0.00019178,2]
[332613604,1721349044051,-500.0,0.00019178,2]
[332613605,1721349044062,-512.54760307,0.00019178,2]
[332613606,1721349044071,-500.0,0.00019178,2]
[332613607,1721349044083,-500.0,0.00019178,2]
[332613608,1721349044095,-529.32,0.00019178,2]
[332613609,1721349044105,-500.0,0.00019178,2]
[332613610,1721349044114,-500.0,0.00019178,2]
[332613611,1721349044124,-619.63,0.00019178,2]
[332613612,1721349044134,-500.0,0.00019178,2]
[332613613,1721349044145,-500.0,0.00019178,2]
[332613614,1721349044156,-500.0,0.00019178,2]
[332613616,1721349044165,-500.0,0.00019178,2]
[332613618,1721349044176,-500.0,0.00019178,2]
[332613619,1721349044185,-303.94276586,0.00019178,2]
[332613620,1721349044195,-500.0,0.00019178,2]
[332613621,1721349044204,-748.98,0.00019178,2]
[332613622,1721349044214,-500.0,0.00019178,2]
[332613623,1721349044223,-500.0,0.00019178,2]
[332613624,1721349044232,-500.0,0.00019178,2]
[332613625,1721349044242,-500.0,0.00019178,2]
[332613626,1721349044252,-500.0,0.00019178,2]
[332613627,1721349044262,-500.0,0.00019178,2]
[332613628,1721349044271,-500.0,0.00019178,2]
[332613629,1721349044282,-500.0,0.00019178,2]
[332613630,1721349044292,-500.0,0.00019178,2]
[332613631,1721349044301,-500.0,0.00019178,2]
[332613632,1721349044310,-500.0,0.00019178,2]
[332613633,1721349044320,-500.0,0.00019178,2]
[332613634,1721349044329,-500.0,0.00019178,2]
[332613635,1721349044338,-500.0,0.00019178,2]
[332613636,1721349044347,-500.0,0.00019178,2]
[332613637,1721349044356,-1138.14,0.00019178,2]
[332613638,1721349044365,-500.0,0.00019178,2]
[332613639,1721349044374,-502.58055562,0.00019178,2]
[332613640,1721349044383,-1822.61,0.00019178,2]
[332613641,1721349044393,-500.0,0.00019178,2]
[332613642,1721349044404,-500.0,0.00019178,2]
[332613643,1721349044413,-500.0,0.00019178,2]
[332613644,1721349044422,-500.0,0.00019178,2]
[332613645,1721349044431,-500.0,0.00019178,2]
[332613646,1721349044440,-500.0,0.00019178,2]
[332613647,1721349044449,-500.0,0.00019178,2]
[332613648,1721349044458,-500.0,0.00019178,2]
[332613649,1721349044468,-500.0,0.00019178,2]
[332613650,1721349044479,-500.0,0.00019178,2]
[332613651,1721349044489,-500.0,0.00019178,2]
[332613652,1721349044498,-500.0,0.00019178,2]
[332613653,1721349044507,-1154.44,0.00019178,2]
[332613654,1721349044517,-500.0,0.00019178,2]
[332613655,1721349044526,-500.0,0.00019178,2]
[332613656,1721349044536,-500.0,0.00019178,2]
[332613657,1721349044546,-500.0,0.00019178,2]
[332613658,1721349044555,-500.0,0.00019178,2]
[332613659,1721349044564,-500.0,0.00019178,2]
[332613660,1721349044574,-500.0,0.00019178,2]
[332613661,1721349044583,-500.0,0.00019178,2]
[332613662,1721349044593,-500.0,0.00019178,2]
[332613663,1721349044603,-500.0,0.00019178,2]
[332613664,1721349044612,-500.0,0.00019178,2]
[332613665,1721349044621,-500.0,0.00019178,2]
[332613666,1721349044631,-500.0,0.00019178,2]
[332613667,1721349044641,-500.0,0.00019178,2]
[332613668,1721349044650,-500.0,0.00019178,2]
[332613669,1721349044660,-500.0,0.00019178,2]
[332613670,1721349044669,-500.0,0.00019178,2]
[332613671,1721349044678,-500.0,0.00019178,2]
[332613672,1721349044688,-500.0,0.00019178,2]
[332613673,1721349044697,-513.70642918,0.00019178,2]
[332613674,1721349044707,-500.0,0.00019178,2]
[332613675,1721349044716,-2235.65,0.00019178,2]
[332613676,1721349044726,-500.0,0.00019178,2]
[332613677,1721349044735,-500.0,0.00019178,2]
[332613678,1721349044745,-2266.09,0.00019178,2]
[332613679,1721349044754,-872.99,0.00019178,2]
[332613680,1721349044764,-500.0,0.00019178,2]
[332613681,1721349044773,-505.06475904,0.00019178,2]
[332613682,1721349044783,-500.0,0.00019178,2]
[332613683,1721349044792,-206.93798531,0.00019178,2]
[332613684,1721349044801,-500.0,0.00019178,2]
[332613685,1721349044811,-500.0,0.00019178,2]
[332613686,1721349044820,-500.0,0.00019178,2]
[332613687,1721349044830,-500.0,0.00019178,2]
[332613688,1721349044839,-509.94680955,0.00019178,2]
[332613689,1721349044849,-502.84470878,0.00019178,2]
[332613690,1721349044858,-1178.79,0.00019178,2]
[332613691,1721349044868,-500.0,0.00019178,2]
[332613692,1721349044878,-500.0,0.00019178,2]
[332613693,1721349044888,-1183.6,0.00019178,2]
[332613694,1721349044907,-500.0,0.00019178,2]
[332613695,1721349044917,-2112.64,0.00019178,2]
[332613696,1721349044927,-500.0,0.00019178,2]
[332613697,1721349044936,-517.55120939,0.00019178,2]
[332613698,1721349044945,-6511.73,0.00019178,2]
[332613699,1721349044955,-914.32,0.00019178,2]
[332613700,1721349044966,-1559.57,0.00019178,2]
[332613701,1721349044976,-503.66318536,0.00019178,2]
[332613702,1721349044988,-204.01576,0.00019178,2]
[332613703,1721349044998,-500.0,0.00019178,2]
[332613704,1721349045007,-204.01576,0.00019178,2]
[332613705,1721349045017,-204.01576,0.00019178,2]
[332613706,1721349045028,-204.01576,0.00019178,2]
[332613707,1721349045037,-204.01576,0.00019178,2]
[332613708,1721349045046,-204.01576,0.00019178,2]
[332613709,1721349045056,-204.01576,0.00019178,2]
[332613710,1721349045066,-204.01576,0.00019178,2]
[332613711,1721349045075,-204.01576,0.00019178,2]
[332613712,1721349045087,-500.0,0.00019178,2]
[332613713,1721349045097,-500.0,0.00019178,2]
[332613714,1721349045107,-204.01576,0.00019178,2]
[332613715,1721349045117,-500.0,0.00019178,2]
[332613716,1721349045127,-204.01576,0.00019178,2]
[332613717,1721349045137,-204.01576,0.00019178,2]
[332613718,1721349045147,-593.35394947,0.00019178,2]
[332613719,1721349045157,-500.0,0.00019178,2]
[332613720,1721349045168,-500.0,0.00019178,2]
[332613721,1721349045177,-500.0,0.00019178,2]
[332613722,1721349045187,-3776.44,0.00019178,2]
[332613723,1721349045196,-198.178094,0.00019178,2]
[332613724,1721349045206,-198.178094,0.00019178,2]
[332613725,1721349045218,-198.178094,0.00019178,2]
[332613726,1721349045227,-198.178094,0.00019178,2]
[332613727,1721349045237,-198.178094,0.00019178,2]
[332613728,1721349045247,-198.178094,0.00019178,2]
[332613729,1721349045256,-198.178094,0.00019178,2]
[332613730,1721349045266,-198.178094,0.00019178,2]
[332613731,1721349045275,-198.178094,0.00019178,2]
[332613732,1721349045285,-198.178094,0.00019178,2]
[332613733,1721349045295,-500.0,0.00019178,2]
[332613734,1721349045304,-500.0,0.00019178,2]
[332613735,1721349045315,-198.178094,0.00019178,2]
[332613736,1721349045324,-198.178094,0.00019178,2]
[332613737,1721349045334,-500.0,0.00019178,2]
[332613738,1721349045344,-500.0,0.00019178,2]
[332613739,1721349045355,-500.0,0.00019178,2]
[332613740,1721349045366,-500.0,0.00019178,2]
[332613741,1721349045375,-151.0,0.00019178,2]
[332613742,1721349045385,-506.26867496,0.00019178,2]
[332613743,1721349045396,-151.0,0.00019178,2]
[332613744,1721349045405,-285.186136,0.00019178,2]
[332613745,1721349045414,-1246.41,0.00019178,2]
[332613746,1721349045424,-500.0,0.00019178,2]
[332613747,1721349045433,-500.0,0.00019178,2]
[332613748,1721349045444,-167.93072644,0.00019178,2]
[332613749,1721349045455,-500.0,0.00019178,2]
[332613750,1721349045466,-500.0,0.00019178,2]
[332613751,1721349045475,-151.0,0.00019178,2]
[332613752,1721349045486,-151.0,0.00019178,2]
[332613753,1721349045496,-151.0,0.00019178,2]
[332613754,1721349045506,-151.0,0.00019178,2]
[332613755,1721349045515,-500.0,0.00019178,2]
[332613756,1721349045526,-151.0,0.00019178,2]
[332613757,1721349045536,-151.0,0.00019178,2]
[332613758,1721349045546,-151.0,0.00019178,2]
[332613759,1721349045556,-151.0,0.00019178,2]
[332613760,1721349045565,-151.0,0.00019178,2]
[332613761,1721349045575,-1583.96,0.00019178,2]
[332613762,1721349045584,-500.0,0.00019178,2]
[332613763,1721349045594,-151.0,0.00019178,2]
[332613764,1721349045603,-151.0,0.00019178,2]
[332613765,1721349045613,-213.585638,0.00019178,2]
[332613766,1721349045622,-2213.76,0.00019178,2]
[332613767,1721349045631,-500.0,0.00019178,2]
[332613768,1721349045646,-500.0,0.00019178,2]
[332613769,1721349045655,-509.34027352,0.00019178,2]
[332613770,1721349045665,-1219.11,0.00019178,2]
[332613771,1721349045674,-274.505802,0.00019178,2]
[332613772,1721349045683,-604.85181572,0.00019178,2]
[332613773,1721349045693,-6435.53,0.00019178,2]
[332613774,1721349045702,-556.32,0.00019178,2]
[332613775,1721349045714,-533.45,0.00019178,2]
[332613776,1721349045724,-500.0,0.00019178,2]
[332613777,1721349045734,-500.0,0.00019178,2]
[332613778,1721349045745,-500.0,0.00019178,2]
[332613779,1721349045755,-500.0,0.00019178,2]
[332613780,1721349045766,-500.0,0.00019178,2]
[332613781,1721349045777,-1525.43,0.00019178,2]
[332613782,1721349045786,-532.71,0.00019178,2]
[332613783,1721349045796,-1825.55,0.00019178,2]
[332613784,1721349045806,-757.46,0.00019178,2]
[332613785,1721349045816,-500.0,0.00019178,2]
[332613786,1721349045826,-1863.31,0.00019178,2]
[332613787,1721349045836,-500.0,0.00019178,2]
[332613788,1721349045846,-500.0,0.00019178,2]
[332613789,1721349045856,-4830.43,0.00019178,2]
[332613790,1721349045866,-500.0,0.00019178,2]
[332613791,1721349045876,-789.85,0.00019178,2]